Workbook

Sheet Obsah
E1: 100
C3: B8 Vývoj školských zařízení a škol pro mimoškolní vzdělávání
C4: Zdroje dat jsou uvedeny v zápatí jednotlivých tabulek
C6: Text | E6: Obsah
D7: Školská zařízení a školy pro mimoškolní vzdělávání celkem
C8: Tabulka 1 | E8: ='B8.1.1'!H4&" "&'B8.1.1'!D5 -> Školská zařízení a ZUŠ – výdaje v letech 2008 až 2018
C10: Tabulka 2 | E10: ='B8.1.2'!H4&" "&'B8.1.2'!D5 -> Školská zařízení celkem a jazykové školy a ZUŠ – přepočtené počty zaměstnanců v letech 2008 až 2018
C12: Tabulka 3 | E12: ='B8.1.3'!H4&" "&'B8.1.3'!D5 -> Školská zařízení celkem a jazykové školy a ZUŠ – průměrné měsíční mzdy zaměstnanců v letech 2008 až 2018
D13: Zařízení a školy pro mimoškolní výchovu a zájmové vzdělávání ve volném čase
C14: Tabulka 5 | E14: ='B8.2.1'!H4&" "&'B8.2.1'!D5 -> Školní družiny a školní kluby – zařízení a zapsaní účastníci ve školním roce 2008/09 až 2018/19
C16: Tabulka 6 | E16: ='B8.2.2'!H4&" "&'B8.2.2'!D5 -> Střediska volného času – střediska, účastníci a pedagogičtí ve školním roce 2008/09 až 2018/19
C18: Tabulka 7 | E18: ='B8.2.3'!H4&" "&'B8.2.3'!D5 -> Základní umělecké školy – školy, žáci/dívky ve školním roce 2008/09 až 2018/19
C20: Tabulka 8 | E20: ='B8.2.4'!H4&" "&'B8.2.4'!D5 -> Jazykové školy s právem státní jazykové zkoušky – školy, žáci, učitelé ve školním roce 2008/09 až 2018/19
C22: Tabulka 9 | E22: ='B8.2.5'!H4&" "&'B8.2.5'!D5 -> Jazykové školy – jednoleté jazykové kurzy ve školním roce 2008/09 až 2018/19
D23: Zařízení zajišťující ubytování žáků a studentů
C24: Tabulka 10 | E24: ='B8.3.1'!H4&" "&'B8.3.1'!D5 -> Ubytovací zařízení – domovy mládeže, ubytovaní a pracovníci ve školním roce 2008/09 až 2018/19
C26: Tabulka 11 | E26: ='B8.3.2'!H4&" "&'B8.3.2'!D5 -> Ubytovací zařízení – internáty a ubytovaní žáci ve školním roce 2008/09 až 2018/19
D27: Zařízení zajišťující stravování žáků a studentů
C28: Tabulka 12 | E28: ='B8.4.1'!H4&" "&'B8.4.1'!D5 -> Stravovací zařízení – školní jídelny, strávníci a pracovníci ve školním roce 2008/09 až 2018/19
D29: Zařízení pro výkon ústavní a ochranné péče
C30: Tabulka 13 | E30: ='B8.5.1'!H4&" "&'B8.5.1'!D5 -> Zařízení pro výkon ústavní a ochranné výchovy ve školním roce 2008/09 až 2018/19
C32: Tabulka 14 | E32: ='B8.5.2'!$H$4&" "&'B8.5.2'!$D$5 -> Zařízení pro výkon ústavní a ochranné výchovy ve školním roce 2008/09 až 2018/19
D33: Obrazová příloha
C35: Graf 1 | E35: ='GB1'!$H$4&" "&'GB1'!$D$5 -> Školská zařízení celkem, jazykové školy a základní umělecké školy – všichni zřizovatelé – přepočtené počty zaměstnanců a pedag. pracovníků, průměrné nominální a reálné mzdy v letech 2007 až 2017
C37: Graf 2 | E37: ='GB2'!$G$4&" "&'GB2'!$D$5 -> Školní družiny a školní kluby – poměrové ukazatele ve školním roce 2008/09 až 2018/19
C39: Graf 3 | E39: ='GB3'!$G$4&" "&'GB3'!$D$5 -> Školní družiny a školní kluby – počty zapsaných žáků a jejich podíly na příslušné skupině žáků ve školním roce 2008/09 až 2018/19
C41: Graf 4 | E41: ='GB4'!$G$4&" "&'GB4'!$D$5 -> Střediska pro volný čas dětí a mládeže – poměrové ukazatele ve školním roce 2008/09 až 2018/19
C43: Graf 5 | E43: ='GB5'!$H$4&" "&'GB5'!$D$5 -> Základní umělecké školy – poměrové ukazatele ve školním roce 2008/09 až 2018/19

Sheet B8.1.1
D4: Tab. B8.1.1: | H4: Školská zařízení a ZUŠ – výdaje
D5: v letech 2008 až 2018
Y6: v tis. Kč
D7: Školská zařízení1) | J7: 2003 | K7: 2004 | L7: 2005 | M7: 2006 | N7: 2007 | O7: 2008 | P7: 2009 | Q7: 2010 | R7: 2011 | S7: 2012 | T7: 2013 | U7: 2014 | V7: 2015 | W7: 2016 | X7: 2017 | Y7: 2018
D12: Výdaje na školská zařízení a ZUŠ2)
E13: Celkem | J13: 10672430.71 | K13: 11592410.33 | L13: 14160885.76 | M13: 14743795.14 | N13: 14950629.98 | O13: 15598889.59 | P13: 16876962.13 | Q13: 16659512.67 | R13: 15757063.75 | S13: 14462469.44 | T13: 15848562.01 | U13: =U19+U25 -> 16400035.68 | V13: =V19+V25 -> 14731578.93 | W13: =W19+W25 -> 15883305.98 | X13: 17276244.78 | Y13: 19698289.71
E14: v tom | F14: neinvestiční výdaje | J14: 9530972.27 | K14: 9985117.24 | L14: 12329160.11 | M14: 12859346.37 | N14: 13638925.04 | O14: 14132177.62 | P14: 14977921.01 | Q14: 15229923.19 | R14: 14643512.86 | S14: 13587859.45 | T14: 14927703.2 | U14: 15208925.06 | V14: =V20+V26 -> 14165880.56 | W14: =W20+W26 -> 15175070.19 | X14: 16464027.58 | Y14: 18698211.5
F15: investiční výdaje | J15: 1141458.44 | K15: 1607293.09 | L15: 1831725.65 | M15: 1884448.77 | N15: 1311704.94 | O15: 1466711.97 | P15: 1899041.12 | Q15: 1429589.48 | R15: 1113550.888 | S15: 874609.9887 | T15: 920858.8143 | U15: 1191110.619 | V15: =V21+V27 -> 565698.3691 | W15: =W21+W27 -> 708235.7921 | X15: 812217.2075 | Y15: 1000078.21
E16: v % | F16: neinvestiční výdaje | J16: 0.8930460669 | K16: 0.8613495344 | L16: 0.8706489353 | M16: 0.8721869945 | N16: 0.9122642362 | O16: 0.9059733091 | P16: 0.8874773134 | Q16: 0.9141877972 | R16: 0.9293300512 | S16: 0.9395255428 | T16: 0.9418963807 | U16: =U14/U13 -> 0.9273714617 | V16: =V14/V13 -> 0.9615996105 | W16: =W14/W13 -> 0.9554100517 | X16: 0.9529864726 | Y16: =Y14/Y13 -> 0.9492302009
F17: investiční výdaje | J17: 0.1069539331 | K17: 0.1386504656 | L17: 0.1293510647 | M17: 0.1278130055 | N17: 0.08773576376 | O17: 0.09402669091 | P17: 0.1125226866 | Q17: 0.08581220281 | R17: 0.07066994876 | S17: 0.06047445717 | T17: 0.05810361935 | U17: =U15/U13 -> 0.07262853826 | V17: =V15/V13 -> 0.03840038953 | W17: =W15/W13 -> 0.04458994826 | X17: 0.0470135274 | Y17: =Y15/Y13 -> 0.05076979905
D18: Výdaje z rozpočtů kapitoly 333-MŠMT
E19: Celkem | J19: 1742767.56 | K19: 1974926.1 | L19: 2017791.3 | M19: 2093641.09 | N19: 2284970.35 | O19: 2206076.16 | P19: 2325634.1 | Q19: 2365285.02 | R19: 2385834.629 | S19: 1254196.632 | T19: 2175474.174 | U19: =U20+U21 -> 2142749.132 | V19: =V20+V21 -> 2023461.016 | W19: =W20+W21 -> 2089891.604 | X19: 2228937.762 | Y19: =Y20+Y21 -> 2596746.038
E20: v tom | F20: neinvestiční výdaje | J20: 1301782.36 | K20: 1432422.53 | L20: 1581926.07 | M20: 1656129.88 | N20: 1905635.7 | O20: 1917549.94 | P20: 2026184.5 | Q20: 2139376.66 | R20: 2152245.002 | S20: 1190837.583 | T20: 2120237.6 | U20: 2087298.215 | V20: 1949535.881 | W20: 2049365.83 | X20: 2212455.499 | Y20: 2546941.841
F21: investiční výdaje | J21: 440985.2 | K21: 542503.57 | L21: 435865.23 | M21: 437511.21 | N21: 379334.65 | O21: 288526.22 | P21: 299449.6 | Q21: 225908.36 | R21: 233589.6277 | S21: 63359.04867 | T21: 55236.57428 | U21: 55450.91646 | V21: 73925.13469 | W21: 40525.77354 | X21: 16482.26306 | Y21: 49804.19718
E22: v % | F22: neinvestiční výdaje | J22: 0.7469626988 | K22: 0.7253043696 | L22: 0.7839889438 | M22: 0.7910153285 | N22: 0.8339870581 | O22: 0.8692129378 | P22: 0.8712395901 | Q22: 0.9044900052 | R22: 0.9020931188 | S22: 0.9494823642 | T22: 0.9746094093 | U22: =U20/U19 -> 0.9741216012 | V22: =V20/V19 -> 0.9634659951 | W22: =W20/W19 -> 0.980608672 | X22: 0.9926053283 | Y22: =Y20/Y19 -> 0.980820536
F23: investiční výdaje | J23: 0.2530373012 | K23: 0.2746956304 | L23: 0.2160110562 | M23: 0.2089846715 | N23: 0.1660129419 | O23: 0.1307870622 | P23: 0.1287604099 | Q23: 0.09550999482 | R23: 0.09790688124 | S23: 0.05051763581 | T23: 0.02539059068 | U23: =U21/U19 -> 0.02587839875 | V23: =V21/V19 -> 0.03653400491 | W23: =W21/W19 -> 0.01939132798 | X23: 0.007394671731 | Y23: =Y21/Y19 -> 0.01917946401
D24: Výdaje z rozpočtu kapitoly 700-Obce a DSO, KÚ
E25: Celkem | J25: 8998887.61 | K25: 9617484.23 | L25: 12143094.46 | M25: 12650154.05 | N25: 12665659.63 | O25: 13392813.43 | P25: 14579419.89 | Q25: 14320780.15 | R25: 13396996.52 | S25: 13234150.27 | T25: 13673087.84 | U25: =U26+U27 -> 14257286.55 | V25: =V26+V27 -> 12708117.91 | W25: =W26+W27 -> 13793414.38 | X25: 15047307.02 | Y25: =Y26+Y27 -> 17101543.67
E26: v tom | F26: neinvestiční výdaje | J26: 8247993.74 | K26: 8552694.71 | L26: 10747234.04 | M26: 11203216.49 | N26: 11733289.34 | O26: 12214627.68 | P26: 12979828.37 | Q26: 13117099.03 | R26: 12517035.26 | S26: 12422899.33 | T26: 12807465.6 | U26: 13121626.85 | V26: 12216344.68 | W26: 13125704.36 | X26: 14251572.08 | Y26: 16151269.65
F27: investiční výdaje | J27: 750893.87 | K27: 1064789.52 | L27: 1395860.42 | M27: 1446937.56 | N27: 932370.29 | O27: 1178185.75 | P27: 1599591.52 | Q27: 1203681.12 | R27: 879961.26 | S27: 811250.94 | T27: 865622.24 | U27: 1135659.703 | V27: 491773.2344 | W27: 667710.0185 | X27: 795734.9444 | Y27: 950274.0128
E28: v % | F28: neinvestiční výdaje | J28: 0.9165570343 | K28: 0.8892860654 | L28: 0.8850490355 | M28: 0.8805440619 | N28: 0.9263859667 | O28: 0.9120285102 | P28: 0.8902842821 | Q28: 0.915948635 | R28: 0.9343165269 | S28: 0.9387001868 | T28: 0.9366915323 | U28: =U26/U25 -> 0.9203453127 | V28: =V26/V25 -> 0.9613024338 | W28: =W26/W25 -> 0.9515921149 | X28: 0.9471177837 | Y28: =Y26/Y25 -> 0.9444334365
F29: investiční výdaje | J29: 0.08344296568 | K29: 0.1107139346 | L29: 0.1149509645 | M29: 0.1194559381 | N29: 0.07361403332 | O29: 0.0879714898 | P29: 0.1097157179 | Q29: 0.08405136504 | R29: 0.06568347306 | S29: 0.06129981324 | T29: 0.06330846772 | U29: =U27/U25 -> 0.07965468735 | V29: =V27/V25 -> 0.03869756623 | W29: =W27/W25 -> 0.04840788511 | X29: 0.05288221628 | Y29: =Y27/Y25 -> 0.05556656354
D30: Podíl výdajů na školská zařízení, jazykové školy a ZUŠ na celkových výdajích na školství a podíl na HDP
E31: Výdaje na školství celkem v mld. Kč2),3) | J31: 114.2477725 | K31: 121.3480397 | L31: 128.5541745 | M31: 141.2484394 | N31: 151.5849897 | O31: 149.7997268 | P31: 162.803504 | Q31: 161.8748019 | R31: 172.7687959 | S31: 170.3742654 | T31: 171.7249628 | U31: 177.5906341 | V31: 181.6089812 | W31: 172.2724 | X31: 193.6421335 | Y31: 221.5246672
E32: Podíl výdajů na školská zařízení na celkových výdajích | J32: =J13/J31/1000000 -> 0.09341478154 | K32: 0.09553026453 | L32: 0.1101550052 | M32: 0.1043820038 | N32: 0.09862869674 | O32: 0.1041316291 | P32: 0.1036646123 | Q32: 0.1029160343 | R32: =R13/R31/1000000 -> 0.09120318093 | S32: 0.08488646687 | T32: 0.09229037966 | U32: 0.09234741329 | V32: 0.0811170176 | W32: =W13/W31/1000000 -> 0.09219878508 | X32: 0.08921738502 | Y32: 0.08892142781
E33: HDP v mld. Kč v běžných cenách | J33: 2688.107 | K33: 3057.66 | L33: 3257.972 | M33: 3507.131 | N33: 3840.117 | O33: 4024.117 | P33: 3930.409 | Q33: 3962.464 | R33: 4033.755 | S33: 4059.912 | T33: 4098.128 | U33: 4313.789 | V33: 4595.783 | W33: 4773.24 | X33: 5055.029 | Y33: 5408.766
E34: Výdaje na školská zařízení v % HDP | J34: =J13/1000000/J33 -> 0.003970240288 | K34: =K13/1000000/K33 -> 0.003791268594 | L34: 0.004346533905 | M34: 0.004203947654 | N34: 0.003893274601 | O34: 0.003876350909 | P34: 0.004293945523 | Q34: =Q13/1000000/Q33 -> 0.004204331615 | R34: 0.003906301634 | S34: 0.003562261803 | T34: 0.003867268668 | U34: 0.003801770481 | V34: 0.003205455724 | W34: =W13/1000000/W33 -> 0.003327573301 | X34: 0.003417635148 | Y34: 0.003641919378
D35: Dotace soukromým a církevním školským zařízením a ZUŠ z kapitoly 333-MŠMT
E36: Celkem | J36: 368474.789 | K36: 390042.212 | L36: 436096.967 | M36: 461914.7649 | N36: 538123.3 | O36: . | P36: . | Q36: . | R36: . | S36: . | T36: . | U36: . | V36: . | W36: . | X36: . | Y36: .
E37: v tom | F37: soukromým zařízením | J37: 269509.343 | K37: 281636.989 | L37: 315614.967 | M37: 331322.7649 | N37: 381788.3 | O37: . | P37: . | Q37: . | R37: . | S37: . | T37: . | U37: . | V37: . | W37: . | X37: . | Y37: .
F38: církevním zařízením4) | J38: 98965.446 | K38: 108405.223 | L38: 120482 | M38: 130592 | N38: 156335 | O38: 168442.4177 | P38: 182642 | Q38: 194908.191 | R38: 207974.701 | S38: 232460.1628 | T38: 258570 | U38: 290131 | V38: 312022.1993 | W38: 239307 | X38: 349569.206 | Y38: 399541
D39: Komentáře: | Y39: Zdroj: Státní závěrečný účet, ZÚ - kapitola 333-MŠMT, 700-Obce a DSO; KÚ; ČSÚ; monitor.statnipokladna.cz
D40: 1) | E40: Zahrnuty jsou výdaje na školská zařízení pro výkon ústavní a ochranné výchovy (§ 313x), výdaje na ostatní zařízení související s výchovou a vzděláváním mládeže (§ 314x). Dále jsou zahrnuty výdaje na základní umělecké, jazykové a zájmové vzdělávání (§ 323x).
D41: 2) | E41: Zahrnuty jsou celkové výdaje kapitoly 333-MŠMT a kapitoly 700-Obce a DSO; KÚ. Nejsou zahrnuty výdaje Ministerstva obrany.
D42: 3) | E42: Meziroční snížení výdajů v roce 2008 je dáno aplikací zákona č. 26/2008 Sb. a z něj vyplývajícím nepřeváděním nevyčerpaných prostředků OSS do rezervních fondů, a tudíž jejich nezahrnutím do čerpání.
D43: 4) | E43: Jedná se o uvolněné prostředky odpovídající hodnotám, na co bylo příjemcům dotačních prostředků vystavena rozhodnutí o poskytnutí dotace a co příjemcům dotačních prostředků skutečně v součtu za všechna rozhodnutí o poskytnutí dotace v příslušném roce odešlo.

Sheet B8.1.2
D4: Tab. B8.1.2: | H4: Školská zařízení celkem a jazykové školy a ZUŠ – přepočtené počty
D5: zaměstnanců v letech 2008 až 2018
J7: 2003 | K7: 2004 | L7: 2005 | M7: 2006 | N7: 2007 | O7: 2008 | P7: 2009 | Q7: 2010 | R7: 2011 | S7: 2012 | T7: 2013 | U7: 2014 | V7: 2015 | W7: 2016 | X7: 2017 | Y7: 2018
D12: Všichni zřizovatelé (bez jiných resortů) – zaměstnanci celkem
E13: školní družiny a kluby | J13: 7941.941 | K13: 7638.398 | L13: 7433.444 | M13: 7284.116 | N13: 7334.292 | O13: 7440.608 | P13: 7599.105 | Q13: 7738.077 | R13: 7936.632 | S13: 8163.26 | T13: 8476.729 | U13: 8934.129 | V13: 9499.409 | W13: 9973.394 | X13: 10120.603 | Y13: 10377.1552
E14: dětské domovy, výchovné a diagnostické ústavy | J14: 3800.71 | K14: 4208.178 | L14: 4921.645 | M14: 5022.509 | N14: 5024.018 | O14: 5045.005 | P14: 5082.493 | Q14: 5117.905 | R14: 5084.008 | S14: 4906.382 | T14: 4898.577 | U14: 4823.468 | V14: 4358.738 | W14: 4315.204 | X14: 4345.033 | Y14: 4327.8445
E15: domovy mládeže | J15: 7507.939 | K15: 7504.282 | L15: 7176.994 | M15: 6803.5 | N15: 6587.772 | O15: 6304.172 | P15: 6048.205 | Q15: 5833.258 | R15: 5442.009 | S15: 5074.128 | T15: 4861.037 | U15: 4728.336 | V15: 2978.01 | W15: 2950.237 | X15: 2952.575 | Y15: 2965.4855
E16: internáty škol pro děti se SVP | J16: 1600.028 | K16: 1422.291 | L16: 1150.925 | M16: 1083.477 | N16: 1021.178 | O16: 950.116 | P16: 911.679 | Q16: 896.006 | R16: 866.618 | S16: 801.375 | T16: 775.558 | U16: 748.114 | V16: 545.624 | W16: 537.063 | X16: 526.585 | Y16: 509.0769
E17: speciálně pedagogická centra | J17: 354.404 | K17: 372.892 | L17: 359.271 | M17: 367.133 | N17: 375.518 | O17: 387.325 | P17: 406.522 | Q17: 423.394 | R17: 451.075 | S17: 457.777 | T17: 477.744 | U17: 501.451 | V17: 518.297 | W17: 561.549 | X17: 618.71 | Y17: 657.5991
E18: zařízení školního stravování | J18: 24684.757 | K18: 24095.782 | L18: 23463.881 | M18: 23188.972 | N18: 23129.572 | O18: 23192.557 | P18: 23256.9 | Q18: 23323.535 | R18: 23120.308 | S18: 23243.184 | T18: 23444.227 | U18: 23873.947 | V18: 26662.605 | W18: 26924.239 | X18: 27306.018 | Y18: 27668.7389
E19: střediska pro volný čas dětí a mládeže | J19: 2404.32 | K19: 2487.921 | L19: 2563.404 | M19: 2600.227 | N19: 2636.244 | O19: 2662.821 | P19: 2690.182 | Q19: 2752.069 | R19: 2734.051 | S19: 2713.426 | T19: 2759.079 | U19: 2797.521 | V19: 2839.442 | W19: 2903.305 | X19: 2971.125 | Y19: 3058.7096
E20: základní umělecké školy | J20: 8039.417 | K20: 8114.743 | L20: 8173.653 | M20: 8193.412 | N20: 8234.883 | O20: 8313.132 | P20: 8463.25 | Q20: 8592.192 | R20: 8694.185 | S20: 8845.586 | T20: 8958.867 | U20: 9108.592 | V20: 9259.932 | W20: 9359.763 | X20: 9492.716 | Y20: 9605.9743
E21: jazykové školy s právem státní jazykové zkoušky | J21: 464.582 | K21: 420.738 | L21: 388.621 | M21: 362.408 | N21: 294.211 | O21: 241.338 | P21: 202.126 | Q21: 167.023 | R21: 149.161 | S21: 131.456 | T21: 110.378 | U21: 107.65 | V21: 137.448 | W21: 113.508 | X21: 102.228 | Y21: 99.8586
E22: výchovné a diagnostické ústavy pro mládež | J22: 1426.808 | K22: 1495.906 | L22: 1237.786 | M22: 1287.46 | N22: 1310.262 | O22: 1332.564 | P22: 1333.277 | Q22: 1211.407 | R22: 1176.119 | S22: 1057.221 | T22: 1035.18 | U22: 1021.792 | V22: 959.66 | W22: 975.177 | X22: 1305.466 | Y22: 1333.88
E23: střediska výchovné péče | J23: 0 | K23: 0 | L23: 135.385 | M23: 161.033 | N23: 153.658 | O23: 149.388 | P23: 172.991 | Q23: 315.369 | R23: 310.876 | S23: 307.637 | T23: 316.282 | U23: 380.966 | V23: 411.273 | W23: 441.072 | X23: 456.917 | Y23: 475.7592
D24: z toho pedagogičtí pracovníci
E25: školní družiny a kluby | J25: 7894.027 | K25: 7595.579 | L25: 7407.123 | M25: 7262.203 | N25: 7312.162 | O25: 7419.402 | P25: 7582.421 | Q25: 7716.754 | R25: 7913.462 | S25: 8135.759 | T25: 8452.745 | U25: 8901.241 | V25: 9464.611 | W25: 9933.206 | X25: 10084.43 | Y25: 10336.6908
E26: dětské domovy, výchovné a diagnostické ústavy | J26: 1617.705 | K26: 1875.88 | L26: 2858.925 | M26: 3010.346 | N26: 3061.095 | O26: 3069.103 | P26: 3111.131 | Q26: 3124.3 | R26: 3138.641 | S26: 3048.086 | T26: 3041.764 | U26: 2983.731 | V26: 2932.921 | W26: 2926.603 | X26: 2954.205 | Y26: 2947.9892
E27: domovy mládeže | J27: 2847.232 | K27: 2869.499 | L27: 2777.093 | M27: 2656.36 | N27: 2543.796 | O27: 2407.791 | P27: 2290.442 | Q27: 2196.959 | R27: 2119.461 | S27: 1978.076 | T27: 1876.448 | U27: 1811.485 | V27: 1792.51 | W27: 1757.539 | X27: 1767.793 | Y27: 1787.2272
E28: internáty škol pro děti se SVP | J28: 680.693 | K28: 605.218 | L28: 588.585 | M28: 551.1 | N28: 527.521 | O28: 494.014 | P28: 470.455 | Q28: 454.268 | R28: 438.833 | S28: 419.14 | T28: 406.448 | U28: 393.669 | V28: 393.474 | W28: 394.634 | X28: 390.195 | Y28: 376.1561
E29: speciálně pedagogická centra | J29: 218.831 | K29: 237.392 | L29: 289.634 | M29: 306.876 | N29: 312.083 | O29: 327.067 | P29: 347.638 | Q29: 360.542 | R29: 385.164 | S29: 392.164 | T29: 412.12 | U29: 434.785 | V29: 446.803 | W29: 490.581 | X29: 539.937 | Y29: 572.5827
E30: zařízení školního stravování1) | J30: 2.801 | K30: 2.139 | L30: 4.277 | M30: 3.633 | N30: 3.386 | O30: 3.443 | P30: 3.617 | Q30: 4.117 | R30: 4.633 | S30: 3.68 | T30: 3 | U30: 3.902 | V30: 5.179 | W30: 3.741 | X30: 3 | Y30: 2.2473
E31: střediska pro volný čas dětí a mládeže | J31: 1518.463 | K31: 1563.261 | L31: 1608.131 | M31: 1621.213 | N31: 1632.406 | O31: 1641.738 | P31: 1661.22 | Q31: 1699.103 | R31: 1705.847 | S31: 1699.096 | T31: 1715.29 | U31: 1731.862 | V31: 1745.753 | W31: 1777.984 | X31: 1816.004 | Y31: 1844.2167
E32: základní umělecké školy | J32: 6923.376 | K32: 7004.446 | L32: 7071.297 | M32: 7096.226 | N32: 7132.881 | O32: 7215.886 | P32: 7354.589 | Q32: 7482.073 | R32: 7614.959 | S32: 7779.803 | T32: 7893.366 | U32: 8031.072 | V32: 8157.278 | W32: 8247.919 | X32: 8377.223 | Y32: 8475.8735
E33: jazykové školy s právem státní jazykové zkoušky | J33: 392.266 | K33: 353.756 | L33: 322.973 | M33: 298.151 | N33: 238.089 | O33: 194.427 | P33: 159.918 | Q33: 127.119 | R33: 111.655 | S33: 99.703 | T33: 83.104 | U33: 80.797 | V33: 101.672 | W33: 82.377 | X33: 73.27 | Y33: 71.7053
E34: výchovné a diagnostické ústavy pro mládež | J34: 689.251 | K34: 739.002 | L34: 766.146 | M34: 822.554 | N34: 865.745 | O34: 892.107 | P34: 893.24 | Q34: 789.491 | R34: 759.49 | S34: 694.19 | T34: 681.622 | U34: 669.057 | V34: 689.818 | W34: 706.024 | X34: 1024.847 | Y34: 1055.9568
E35: střediska výchovné péče | J35: 0 | K35: 0 | L35: 94.519 | M35: 113.403 | N35: 114.24 | O35: 110.488 | P35: 130.312 | Q35: 241.63 | R35: 239.582 | S35: 241.48 | T35: 250.32 | U35: 292.326 | V35: 329.074 | W35: 364.026 | X35: 380.113 | Y35: 395.3277
D36: Komentáře: | Y36: Zdroj: databáze MŠMT
D37: 1) | E37: Učitelé odborného výcviku.

Sheet B8.1.3
D4: Tab. B8.1.3: | H4: Školská zařízení celkem a jazykové školy a ZUŠ – průměrné měsíční mzdy
D5: zaměstnanců v letech 2008 až 2018
J7: 2003 | K7: 2004 | L7: 2005 | M7: 2006 | N7: 2007 | O7: 2008 | P7: 2009 | Q7: 2010 | R7: 2011 | S7: 2012 | T7: 2013 | U7: 2014 | V7: 2015 | W7: 2016 | X7: 2017 | Y7: 2018
D12: Všichni zřizovatelé (bez jiných resortů)
D13: Nominální mzda (v běžných cenách) – zaměstnanci celkem
E14: školní družiny a kluby | J14: 13847 | K14: 14803 | L14: 15736.28914 | M14: 16857 | N14: 17597 | O14: 18155.54202 | P14: 19062.76825 | Q14: 18587.44131 | R14: 19233.34811 | S14: 21548.2808 | T14: 21789.83094 | U14: 22148.68167 | V14: 22659.2196 | W14: 23785.72834 | X14: 25362.93653 | Y14: 28158.46936
E15: dětské domovy, výchovné a diagnostické ústavy | J15: 15025 | K15: 15832 | L15: 16989.34413 | M15: 18020 | N15: 19270 | O15: 20023.39839 | P15: 21355.53179 | Q15: 21242.89467 | R15: 21844.44971 | S15: 22999.08706 | T15: 23246.97742 | U15: 23509.22357 | V15: 24639.71789 | W15: 25732.60409 | X15: 27518.43785 | Y15: 30564.1842
E16: domovy mládeže | J16: 12877 | K16: 13406 | L16: 13895.15971 | M16: 14727 | N16: 15442 | O16: 15882.13294 | P16: 17139.79707 | Q16: 17204.27292 | R16: 17557.57653 | S16: 18154.76551 | T16: 18233.5987 | U16: 18398.80512 | V16: 20878.11531 | W16: 21848.07879 | X16: 23158.51057 | Y16: 26059.29305
E17: internáty škol pro děti se SVP | J17: 13279.6437 | K17: 13843.80499 | L17: 14677.31535 | M17: 15550 | N17: 16503 | O17: 17204.81613 | P17: 18462.2878 | Q17: 18266.65121 | R17: 18761.06697 | S17: 19469.22591 | T17: 19505.97161 | U17: 20028.84097 | V17: 21652.77569 | W17: 22701.02018 | X17: 24263.91909 | Y17: 27192.00069
E18: speciálně pedagogická centra | J18: 17951.8311 | K18: 18847.41449 | L18: 20558.96431 | M18: 22103 | N18: 23699 | O18: 24732.09342 | P18: 26192.983 | Q18: 25640.92567 | R18: 26961.06412 | S18: 26871.92818 | T18: 27170.55386 | U18: 27744.99286 | V18: 28213.89104 | W18: 29924.47988 | X18: 32080.98813 | Y18: 35372.30345
E19: zařízení školního stravování | J19: 10092 | K19: 10419 | L19: 10691.28727 | M19: 11397 | N19: 12076 | O19: 12484.29176 | P19: 13991.0517 | Q19: 14354.10927 | R19: 14279.02823 | S19: 14062.21025 | T19: 14183.77599 | U19: 14454.04487 | V19: 14981.87718 | W19: 15750.49764 | X19: 17219.24236 | Y19: 19284.54957
E20: střediska pro volný čas dětí a mládeže | J20: 14937 | K20: 15747 | L20: 16598.81077 | M20: 17508 | N20: 18614 | O20: 19296.73746 | P20: 20382.40446 | Q20: 20482.79934 | R20: 21442.80066 | S20: 22639.19153 | T20: 22587.65002 | U20: 22904.40855 | V20: 23437.01239 | W20: 24401.709 | X20: 26612.65107 | Y20: 29466.30795
E21: základní umělecké školy | J21: 17185 | K21: 19102 | L21: 20511.23613 | M21: 21477 | N21: 22574 | O21: 23422.22043 | P21: 24450.1745 | Q21: 24198.85763 | R21: 24779.97217 | S21: 25327.96236 | T21: 25432.32363 | U21: 25736.24342 | V21: 26346.11312 | W21: 27651.59676 | X21: 29566.00343 | Y21: 32814.68245
E22: jazykové školy s právem státní jazykové zkoušky | J22: 19409 | K22: 20048 | L22: 20204.94861 | M22: 20309 | N22: 22092 | O22: 22842.38599 | P22: 24559.5936 | Q22: 24611.09199 | R22: 24475.03928 | S22: 24271.86093 | T22: 25487.49373 | U22: 24168.10807 | V22: 21162.13344 | W22: 24006.67354 | X22: 26307.20302 | Y22: 27258.76306
E23: výchovné a diagnostické ústavy pro mládež | J23: 16711 | K23: 17521 | L23: 18596.65423 | M23: 19367 | N23: 20683 | O23: 21384.72911 | P23: 22806.68177 | Q23: 22236.17214 | R23: 22628.72323 | S23: 24346.40999 | T23: 24180.22429 | U23: 24930.3764 | V23: 26098.25971 | W23: 27155.79368 | X23: 27746.27336 | Y23: 30776.8663
E24: střediska výchovné péče | J24: x | K24: x | L24: 18540.24264 | M24: 19172 | N24: 20713 | O24: 22132.2479 | P24: 23460.48108 | Q24: 22823.20551 | R24: 23672.23266 | S24: 24887.40734 | T24: 25603.53182 | U24: 25881.93697 | V24: 27137.24704 | W24: 28825.58063 | X24: 30562.85551 | Y24: 33434.00734
D25: z toho pedagogičtí pracovníci
E26: školní družiny a kluby | J26: 13876 | K26: 14832 | L26: 15751.70181 | M26: 16873 | N26: 17614 | O26: 18170.84075 | P26: 19075.39544 | Q26: 18599.26044 | R26: 19243.1628 | S26: 21551.54364 | T26: 21809.21678 | U26: 22178.83974 | V26: 22687.05383 | W26: 23811.84196 | X26: 25388.80708 | Y26: 28178.85815
E27: dětské domovy, výchovné a diagnostické ústavy | J27: 18968 | K27: 19661 | L27: 19730.29501 | M27: 20631 | N27: 21893 | O27: 22784.45572 | P27: 23935.7043 | Q27: 23478.44336 | R27: 24540.80638 | S27: 26295.8421 | T27: 26525.71373 | U27: 26862.57768 | V27: 27444.81642 | W27: 28491.76807 | X27: 30231.08431 | Y27: 33374.5665
E28: domovy mládeže | J28: 16801 | K28: 17368 | L28: 18338.88677 | M28: 19446 | N28: 20182 | O28: 20712.73663 | P28: 21710.43358 | Q28: 21304.58966 | R28: 22002.68614 | S28: 23606.01472 | T28: 23840.22961 | U28: 24135.45434 | V28: 24725.88972 | W28: 25955.62313 | X28: 27252.92314 | Y28: 30658.17434
E29: internáty škol pro děti se SVP | J29: 16129.07165 | K29: 16890.82873 | L29: 17361.97618 | M29: 18299 | N29: 19189 | O29: 19932.56568 | P29: 21073.34141 | Q29: 20406.77951 | R29: 21449.47509 | S29: 22661.22537 | T29: 22948.97297 | U29: 23558.19059 | V29: 23758.69964 | W29: 24710.48638 | X29: 26165.43566 | Y29: 29360.3274
E30: speciálně pedagogická centra | J30: 19506.6543 | K30: 20679.40825 | L30: 21835.40894 | M30: 23248 | N30: 25077 | O30: 26120.95101 | P30: 27512.5974 | Q30: 26907.75439 | R30: 28174.79394 | S30: 28300.95594 | T30: 28465.94459 | U30: 28942.40103 | V30: 29512.0909 | W30: 31215.53491 | X30: 33320.06805 | Y30: 36613.48221
E31: zařízení školního stravování | J31: 11902 | K31: 13282 | L31: 14244.60291 | M31: 12601 | N31: 16246 | O31: 19451.85884 | P31: 19068.19648 | Q31: 20764.00696 | R31: 19697.1185 | S31: 21865.53442 | T31: 26773.08333 | U31: 23092.6448 | V31: 22253.44339 | W31: 21298.20458 | X31: 23772.58333 | Y31: 20673.58608
E32: střediska pro volný čas dětí a mládeže | J32: 17187 | K32: 18131 | L32: 19227.12448 | M32: 20240 | N32: 21566 | O32: 22387.41713 | P32: 23253.42559 | Q32: 22861.62302 | R32: 24418.82757 | S32: 26193.81694 | T32: 26180.74728 | U32: 26623.45234 | V32: 27322.23779 | W32: 28415.44136 | X32: 30572.59432 | Y32: 33852.01149
E33: základní umělecké školy | J33: 18066 | K33: 20140 | L33: 21674.82349 | M33: 22681 | N33: 23833 | O33: 24676.49198 | P33: 25587.22179 | Q33: 25202.55249 | R33: 25855.0448 | S33: 26444.01327 | T33: 26500.80096 | U33: 26812.59349 | V33: 27452.18881 | W33: 28837.91794 | X33: 30747.93954 | Y33: 34123.6621
E34: jazykové školy s právem státní jazykové zkoušky | J34: 20639 | K34: 21296 | L34: 21690.48858 | M34: 21660 | N34: 23842 | O34: 24402.01807 | P34: 26220.31656 | Q34: 26803.63347 | R34: 26660.85934 | S34: 26233.48428 | T34: 27420.29766 | U34: 26182.75122 | V34: 23196.74542 | W34: 25931.6142 | X34: 28400.35144 | Y34: 28937.43907
E35: výchovné a diagnostické ústavy pro mládež | J35: 20244 | K35: 21009 | L35: 21084.24874 | M35: 21587 | N35: 22819 | O35: 23409.86087 | P35: 24541.02593 | Q35: 23819.18751 | R35: 24550.14494 | S35: 26538.22032 | T35: 26383.27744 | U35: 27221.25544 | V35: 27608.29257 | W35: 28727.08931 | X35: 28581.25839 | Y35: 31584.44021
E36: střediska výchovné péče | J36: x | K36: x | L36: 20473.01865 | M36: 20870 | N36: 22279 | O36: 23790.33696 | P36: 24844.22003 | Q36: 24648.9895 | R36: 25671.81974 | S36: 26744.49575 | T36: 27446.1193 | U36: 27703.61001 | V36: 28794.70474 | W36: 30268.61863 | X36: 31970.8556 | Y36: 34785.30912
D37: Reálná mzda (ve stálých cenách roku 2005) – zaměstnanci celkem
E38: školní družiny a kluby | J38: =J14/J$62*100 -> 14499.47644 | K38: =K14/K$62*100 -> 15089.70438 | L38: =L14/L$62*100 -> 15736.28914 | M38: =M14/M$62*100 -> 20309.63855 | N38: =N14/N$62*100 -> 20629.54279 | O38: 20017.13563 | P38: 20788.18784 | Q38: 19986.49603 | R38: 20288.34189 | S38: 22010.50133 | T38: 21943.43498 | U38: 22215.32766 | V38: 22659.2196 | W38: 23620.38564 | X38: 24600.32641 | Y38: =Y14/$Y$62*100 -> 26741.18648
E39: dětské domovy, výchovné a diagnostické ústavy | J39: =J15/J$62*100 -> 15732.98429 | K39: =K15/K$62*100 -> 16138.63405 | L39: 16989.34413 | M39: =M15/M$62*100 -> 21710.84337 | N39: =N15/N$62*100 -> 22590.8558 | O39: 22076.51421 | P39: 23288.47523 | Q39: 22841.82222 | R39: 23042.66847 | S39: 23492.42805 | T39: 23410.8534 | U39: 23579.96346 | V39: 24639.71789 | W39: 25553.72799 | X39: 26691.01635 | Y39: =Y15/$Y$62*100 -> 29025.81596
E40: domovy mládeže | J40: 13483.76963 | K40: 13665.6473 | L40: 13895.15971 | M40: 17743.37349 | N40: =N16/N$62*100 -> 18103.1653 | O40: 17510.62066 | P40: 18691.16365 | Q40: 18499.2182 | R40: 18520.65035 | S40: 18544.19357 | T40: 18362.13363 | U40: 18454.16762 | V40: 20878.11531 | W40: 21696.20535 | X40: 22462.1829 | Y40: 24747.66671
E41: internáty škol pro děti se SVP | J41: 13905.38607 | K41: 14111.9317 | L41: 14677.31535 | M41: 18734.93976 | N41: =N17/N$62*100 -> 19347.01055 | O41: 18968.92627 | P41: 20133.35638 | Q41: 19641.56044 | R41: 19790.15503 | S41: 19886.84976 | T41: 19643.47595 | U41: 20089.10829 | V41: 21652.77569 | W41: 22543.21765 | X41: 23534.35411 | Y41: 25823.36248
E42: speciálně pedagogická centra | J42: 18797.7289 | K42: 19212.45106 | L42: 20558.96431 | M42: 26630.12048 | N42: =N18/N$62*100 -> 27783.11841 | O42: 27268.0192 | P42: 28563.77644 | Q42: 27570.88782 | R42: 28439.94106 | S42: 27448.34339 | T42: 27362.08848 | U42: 27828.4783 | V42: 28213.89104 | W42: 29716.46462 | X42: 31116.38034 | Y42: 33591.93111
E43: zařízení školního stravování | J43: 10567.53927 | K43: 10620.79511 | L43: 10691.28727 | M43: 13731.3253 | N43: =N19/N$62*100 -> 14157.09261 | O43: 13764.37901 | P43: 15257.41733 | Q43: 15434.5261 | R43: 15062.26606 | S43: 14363.85112 | T43: 14283.76233 | U43: 14497.53748 | V43: 14981.87718 | W43: 15641.01057 | X43: 16701.49598 | Y43: 18313.91222
E44: střediska pro volný čas dětí a mládeže | J44: 15640.8377 | K44: 16051.98777 | L44: 16598.81077 | M44: 21093.9759 | N44: =N20/N$62*100 -> 21821.80539 | O44: 21275.3445 | P44: 22227.26767 | Q44: 22024.51541 | R44: 22618.98804 | S44: 23124.81259 | T44: 22746.87817 | U44: 22973.32854 | V44: 23437.01239 | W44: 24232.08441 | X44: 25812.46467 | Y44: 27983.19843
E45: základní umělecké školy | J45: 17994.7644 | K45: 19471.96738 | L45: 20511.23613 | M45: 25875.90361 | N45: =N21/N$62*100 -> 26464.24385 | O45: 25823.8373 | P45: 26663.22192 | Q45: 26020.27702 | R45: 26139.21115 | S45: 25871.25879 | T45: 25611.60487 | U45: 25813.68447 | V45: 26346.11312 | W45: 27459.38109 | X45: 28677.01594 | Y45: 31163.04126
E46: jazykové školy s právem státní jazykové zkoušky | J46: 20323.56021 | K46: 20436.2895 | L46: 20204.94861 | M46: 24468.6747 | N46: =N22/N$62*100 -> 25899.17937 | O46: 25184.54905 | P46: 26782.54482 | Q46: 26463.53977 | R46: 25817.55198 | S46: 24792.5035 | T46: 25667.16388 | U46: 24240.83056 | V46: 21162.13344 | W46: 23839.79497 | X46: 25516.20079 | Y46: 25886.76454
E47: výchovné a diagnostické ústavy pro mládež | J47: 17498.42932 | K47: =K23/K$62*100 -> 17860.34659 | L47: =L23/L$62*100 -> 18596.65423 | M47: 23333.73494 | N47: =N23/N$62*100 -> 24247.36225 | O47: 23577.43011 | P47: 24870.97249 | Q47: 23909.86252 | R47: 23869.96121 | S47: 24868.65168 | T47: 24350.67905 | U47: 25005.39258 | V47: 26098.25971 | W47: 26967.02451 | X47: 26912.00132 | Y47: 29227.79325
E48: střediska výchovné péče | J48: x | K48: x | L48: =L24/L$62*100 -> 18540.24264 | M48: 23098.79518 | N48: =N24/N$62*100 -> 24282.53224 | O48: 24401.59637 | P48: 25583.94884 | Q48: 24541.0812 | R48: 24970.70956 | S48: 25421.25367 | T48: 25784.01996 | U48: 25959.81642 | V48: 27137.24704 | W48: 28625.2042 | X48: 29643.89477 | Y48: 31751.19405
D49: z toho pedagogičtí pracovníci
E50: školní družiny a kluby | J50: =J26/J$62*100 -> 14529.84293 | K50: =K26/K$62*100 -> 15119.26606 | L50: =L26/L$62*100 -> 15751.70181 | M50: =M26/M$62*100 -> 20328.91566 | N50: =N26/N$62*100 -> 20649.47245 | O50: 20034.00303 | P50: 20801.95795 | Q50: 19999.20478 | R50: 20298.69494 | S50: 22013.83416 | T50: 21962.95748 | U50: 22245.57646 | V50: 22687.05383 | W50: 23646.31773 | X50: 24625.41909 | Y50: 26760.54905
E51: dětské domovy, výchovné a diagnostické ústavy | J51: =J27/J$62*100 -> 19861.7801 | K51: =K27/K$62*100 -> 20041.79409 | L51: 19730.29501 | M51: =M27/M$62*100 -> 24856.62651 | N51: =N27/N$62*100 -> 25665.88511 | O51: 25120.67886 | P51: 26102.18572 | Q51: 25245.63802 | R51: 25886.92656 | S51: 26859.9 | T51: 26712.70264 | U51: 26943.4079 | V51: 27444.81642 | W51: 28293.71209 | X51: 29322.09923 | Y51: 31694.74501
E52: domovy mládeže | J52: 17592.67016 | K52: 17704.38328 | L52: 18338.88677 | M52: 23428.91566 | N52: =N28/N$62*100 -> 23660.02345 | O52: 22836.53432 | P52: 23675.50009 | Q52: 22908.16093 | R52: 23209.58453 | S52: 24112.37458 | T52: 24008.28762 | U52: 24208.07857 | V52: 24725.88972 | W52: 25775.19675 | X52: 26433.4851 | Y52: 29115.07535
E53: internáty škol pro děti se SVP | J53: 16889.08026 | K53: 17217.97016 | L53: 17361.97618 | M53: 22046.98795 | N53: =N29/N$62*100 -> 22495.89683 | O53: 21976.36789 | P53: 22980.74309 | Q53: 21942.77367 | R53: 22626.02857 | S53: 23147.31907 | T53: 23110.74821 | U53: 23629.07783 | V53: 23758.69964 | W53: 24538.71538 | X53: 25378.69608 | Y53: 27882.55214
E54: speciálně pedagogická centra | J54: 20425.81602 | K54: 21079.92686 | L54: 21835.40894 | M54: 28009.63855 | N54: =N30/N$62*100 -> 29398.5932 | O54: 28799.28446 | P54: 30002.83249 | Q54: 28933.06924 | R54: 29720.24677 | S54: 28908.02445 | T54: 28666.61086 | U54: 29029.4895 | V54: 29512.0909 | W54: 30998.5451 | X54: 32318.20374 | Y54: 34770.63838
E55: zařízení školního stravování | J55: 12462.82723 | K55: 13539.24567 | L55: 14244.60291 | M55: 15181.92771 | N55: =N31/N$62*100 -> 19045.72098 | O55: 21446.37138 | P55: 20794.10739 | Q55: 22326.88921 | R55: 20777.55116 | S55: 22334.56018 | T55: 26961.81605 | U55: 23162.13119 | V55: 22253.44339 | W55: 21150.15351 | X55: 23057.79179 | Y55: 19633.03521
E56: střediska pro volný čas dětí a mládeže | J56: 17996.85864 | K56: 18482.16106 | L56: 19227.12448 | M56: 24385.54217 | N56: =N32/N$62*100 -> 25282.53224 | O56: 24682.92958 | P56: 25358.15223 | Q56: 24582.39034 | R56: 25758.25693 | S56: 26755.68635 | T56: 26365.30441 | U56: 26703.56303 | V56: 27322.23779 | W56: 28217.91594 | X56: 29653.34076 | Y56: 32148.15906
E57: základní umělecké školy | J57: 18917.27749 | K57: 20530.07136 | L57: 21674.82349 | M57: 27326.50602 | N57: =N33/N$62*100 -> 27940.21102 | O57: 27206.71663 | P57: 27903.18625 | Q57: 27099.5188 | R57: 27273.25401 | S57: 27011.24951 | T57: 26687.61426 | U57: 26893.27331 | V57: 27452.18881 | W57: 28637.45575 | X57: 29823.41372 | Y57: 32406.13685
E58: jazykové školy s právem státní jazykové zkoušky | J58: 21611.51832 | K58: 21708.46075 | L58: 21690.48858 | M58: 26096.38554 | N58: =N34/N$62*100 -> 27950.76202 | O58: 26904.0993 | P58: 28593.58403 | Q58: 28821.11126 | R58: 28123.26935 | S58: 26796.20458 | T58: 27613.59281 | U58: 26261.53582 | V58: 23196.74542 | W58: 25751.35472 | X58: 27546.41265 | Y58: 27480.94879
E59: výchovné a diagnostické ústavy pro mládež | J59: 21197.90576 | K59: =K35/K$62*100 -> 21415.90214 | L59: =L35/L$62*100 -> 21084.24874 | M59: 26008.43373 | N59: =N35/N$62*100 -> 26751.46542 | O59: 25810.21044 | P59: 26762.29654 | Q59: 25612.02958 | R59: 25896.77737 | S59: 27107.47735 | T59: 26569.26227 | U59: 27303.16493 | V59: 27608.29257 | W59: 28527.39752 | X59: 27721.88011 | Y59: 29994.72005
E60: střediska výchovné péče | J60: x | K60: x | L60: =L36/L$62*100 -> 20473.01865 | M60: 25144.57831 | N60: =N36/N$62*100 -> 26118.40563 | O60: 26229.69896 | P60: 27092.93351 | Q60: 26504.28979 | R60: 27079.97863 | S60: 27318.17748 | T60: 27639.59648 | U60: 27786.97092 | V60: 28794.70474 | W60: 30058.21116 | X60: 31009.55926 | Y60: 33034.4816
D61: Index spotřebitelských cen, meziroční inflace
E62: index spotřebitelských cen (rok 2015 = 100) | J62: 95.5 | K62: 98.1 | L62: 100 | M62: 83 | N62: 85.3 | O62: 90.7 | P62: 91.7 | Q62: 93 | R62: 94.8 | S62: 97.9 | T62: 99.3 | U62: 99.7 | V62: 100 | W62: 100.7 | X62: 103.1 | Y62: 105.3
E63: meziroční inflace | J63: 0.001 | K63: 0.028 | L63: 0.019 | M63: 0.025 | N63: 0.028 | O63: 0.063 | P63: 0.01 | Q63: 0.015 | R63: 0.019 | S63: 0.033 | T63: 0.014 | U63: 0.004 | V63: 0.003 | W63: 0.007 | X63: 0.025 | Y63: 0.021
Y64: Zdroj: databáze MŠMT, ČSÚ

Sheet B8.2.1
D4: Tab. B8.2.1: | H4: Školní družiny a školní kluby – zařízení a zapsaní účastníci
D5: ve školním roce 2008/09 až 2018/19
J7: 2003/04 | K7: 2004/05 | L7: 2005/06 | M7: 2006/07 | N7: 2007/08 | O7: 2008/09 | P7: 2009/10 | Q7: 2010/11 | R7: 2011/12 | S7: 2012/13 | T7: 2013/14 | U7: 2014/15 | V7: 2015/16 | W7: 2016/17 | X7: 2017/18 | Y7: 2018/19
J11: 1) | K11: 1) | L11: 1)
D12: Školní družiny
E13: Počet školních družin | J13: 4116 | K13: 4036 | L13: 4065 | M13: 4114 | N13: 4101 | O13: 3963 | P13: 3976 | Q13: 3979 | R13: 3970 | S13: 3974 | T13: 3981 | U13: 4004 | V13: 4020 | W13: 4045 | X13: 4070 | Y13: 4094
E14: Počet zapsaných žáků ve školních družinách | J14: 215235 | K14: 212664 | L14: 215707 | M14: 221827 | N14: 228135 | O14: 234566 | P14: 239878 | Q14: 247093 | R14: 258370 | S14: 269935 | T14: 284177 | U14: 301990 | V14: 317740 | W14: 330094 | X14: 337192 | Y14: 339037
E15: Podíl na počtu žáků 1. stupně ZŠ | J15: . | K15: . | L15: 0.4310545005 | M15: 0.479 | N15: 0.498 | O15: 0.5119315231 | P15: 0.5206205481 | Q15: 0.530948902 | R15: 0.5447086082 | S15: 0.5530253674 | T15: 0.5616334936 | U15: 0.5702185029 | V15: 0.5762130323 | W15: 0.5801647199 | X15: 0.5857088513 | Y15: 0.5912315456
D16: Školní kluby
E17: Počet školních klubů | J17: 493 | K17: 444 | L17: 474 | M17: 465 | N17: 476 | O17: 483 | P17: 504 | Q17: 518 | R17: 523 | S17: 526 | T17: 540 | U17: 552 | V17: 572 | W17: 591 | X17: 597 | Y17: 603
E18: Počet zapsaných žáků ve školních klubech | J18: 48886 | K18: 34680 | L18: 35877 | M18: 37373 | N18: 38044 | O18: 38279 | P18: 41225 | Q18: 43795 | R18: 42939 | S18: 44950 | T18: 44547 | U18: 44873 | V18: 46980 | W18: 47149 | X18: 47675 | Y18: 47873
E19: Podíl na počtu žáků 2. stupně ZŠ, nižších ročníků víceletých středních škol a konzervatoří | J19: . | K19: . | L19: 0.07259846535 | M19: 0.082 | N19: 0.089 | O19: 0.09559497439 | P19: 0.1097524613 | Q19: 0.1198129829 | R19: 0.1187902697 | S19: 0.1246364193 | T19: 0.1229422009 | U19: 0.1228686978 | V19: 0.1271014485 | W19: 0.1245578301 | X19: 0.1216143136 | Y19: 0.1169242568
Y20: Zdroj: databáze MŠMT

Sheet B8.2.2
D4: Tab. B8.2.2: | H4: Střediska volného času – střediska, účastníci a pedagogičtí
D5: ve školním roce 2008/09 až 2018/19
J7: 2003/04 | K7: 2004/05 | L7: 2005/06 | M7: 2006/07 | N7: 2007/08 | O7: 2008/09 | P7: 2009/10 | Q7: 2010/11 | R7: 2011/12 | S7: 2012/13 | T7: 2013/14 | U7: 2014/15 | V7: 2015/16 | W7: 2016/17 | X7: 2017/18 | Y7: 2018/19
J11: 1) | K11: 1)
D12: Střediska (včetně samostatných stanic)
E13: Celkem | J13: 291 | K13: 293 | L13: 299 | M13: 301 | N13: 296 | O13: 296 | P13: 296 | Q13: 301 | R13: 302 | S13: 310 | T13: 312 | U13: 312 | V13: 319 | W13: 321 | X13: 324 | Y13: 330
D14: Účastníci1)
E15: Celkem | J15: 221773 | K15: 224065 | L15: 217734 | M15: 220340 | N15: 230254 | O15: 234774 | P15: 241056 | Q15: 253232 | R15: 254789 | S15: 268379 | T15: 270699 | U15: 272744 | V15: 290047 | W15: 296248 | X15: 303289 | Y15: 304539
E16: v tom | F16: děti a žáci | J16: 177434 | K16: 176491 | L16: 181917 | M16: 171825 | N16: 188699 | O16: 194275 | P16: 200199 | Q16: 212654 | R16: 218190 | S16: 231021 | T16: 236620 | U16: 239025 | V16: 256093 | W16: 263246 | X16: 270840 | Y16: 273665
F17: studenti a ostatní | J17: 44339 | K17: 47574 | L17: 35817 | M17: 48515 | N17: 41555 | O17: 40499 | P17: 40857 | Q17: 40578 | R17: 36599 | S17: 37358 | T17: 34079 | U17: 33719 | V17: 33954 | W17: 33002 | X17: 32449 | Y17: 30874
D18: Pedagogičtí pracovníci (fyzické osoby)
E19: Celkem | J19: 12267 | K19: 12372 | L19: 11197 | M19: 11674 | N19: 11715 | O19: 12181 | P19: 12423 | Q19: 13249 | R19: 14042 | S19: 14563 | T19: 14847 | U19: 14930 | V19: 15409 | W19: 14987 | X19: 15631 | Y19: 15822
E20: v tom | F20: interní | J20: 1709 | K20: 1735 | L20: 1783 | M20: 1837 | N20: 1823 | O20: 1861 | P20: 1869 | Q20: 1930 | R20: 1966 | S20: 2003 | T20: 1996 | U20: 2068 | V20: 2098 | W20: 2148 | X20: 2205 | Y20: 2277
F21: externí | J21: 8398 | K21: 8679 | L21: 9414 | M21: 9837 | N21: 9892 | O21: 10320 | P21: 10554 | Q21: 11319 | R21: 12076 | S21: 12560 | T21: 12851 | U21: 12862 | V21: 13311 | W21: 12839 | X21: 13426 | Y21: 13545
Y22: Zdroj: databáze MŠMT

Sheet B8.2.3
D4: Tab. B8.2.3: | H4: Základní umělecké školy – školy, žáci/dívky
D5: ve školním roce 2008/09 až 2018/19
J7: 2003/04 | K7: 2004/05 | L7: 2005/06 | M7: 2006/07 | N7: 2007/08 | O7: 2008/09 | P7: 2009/10 | Q7: 2010/11 | R7: 2011/12 | S7: 2012/13 | T7: 2013/14 | U7: 2014/15 | V7: 2015/16 | W7: 2016/17 | X7: 2017/18 | Y7: 2018/19
D12: Školy a pobočky
E13: Školy | J13: 474 | K13: 473 | L13: 474 | M13: 476 | N13: 478 | O13: 478 | P13: 482 | Q13: 485 | R13: 485 | S13: 486 | T13: 486 | U13: 487 | V13: 488 | W13: 488 | X13: 492 | Y13: 496
E14: Pobočky | J14: 459 | K14: 516 | L14: 625 | M14: 556 | N14: 738 | O14: 710 | P14: 696 | Q14: 821 | R14: 837 | S14: 839 | T14: 905 | U14: 915 | V14: 961 | W14: 965 | X14: 949 | Y14: 924
D15: Žáci
E16: Celkem | J16: 221125 | K16: 219416 | L16: 216216 | M16: 218822 | N16: 222517 | O16: 225997 | P16: 230352 | Q16: 234565 | R16: 237309 | S16: 240794 | T16: 242837 | U16: 244349 | V16: 246943 | W16: 248524 | X16: 251218 | Y16: 253545
E17: v tom | F17: žáci hudebních oborů | J17: 143451 | K17: 143363 | L17: 140939 | M17: 141170 | N17: 143845 | O17: 145814 | P17: 148786 | Q17: 151520 | R17: 153833 | S17: 156157 | T17: 157836 | U17: 159472 | V17: 161409 | W17: 162317 | X17: 163694 | Y17: 164839
F18: žáci ostatních oborů | J18: 77674 | K18: 76053 | L18: 75277 | M18: 77652 | N18: 78672 | O18: 80183 | P18: 81566 | Q18: 83045 | R18: 83476 | S18: 84637 | T18: 85001 | U18: 84877 | V18: 85534 | W18: 86207 | X18: 87524 | Y18: 88706
D19: Dívky
E20: Celkem | J20: 158637 | K20: 156926 | L20: 153743 | M20: 155358 | N20: 156865 | O20: 158883 | P20: 161161 | Q20: 163426 | R20: 164198 | S20: 166490 | T20: 167822 | U20: 169462 | V20: 171394 | W20: 172744 | X20: 175254 | Y20: 177141
E21: v tom | F21: žáci hudebních oborů | J21: 96968 | K21: 96523 | L21: 93998 | M21: 93789 | N21: 94574 | O21: 95528 | P21: 96598 | Q21: 97619 | R21: 98389 | S21: 99581 | T21: 100765 | U21: 101787 | V21: 103036 | W21: 103529 | X21: 104520 | Y21: 105162
F22: žáci ostatních oborů | J22: 61669 | K22: 60403 | L22: 59745 | M22: 61569 | N22: 62291 | O22: 63355 | P22: 64563 | Q22: 65807 | R22: 65809 | S22: 66909 | T22: 67057 | U22: 67675 | V22: 68358 | W22: 69215 | X22: 70734 | Y22: 71979
D23: Učitelé (fyzické osoby)
E24: Celkem | J24: 10449 | K24: 10467 | L24: 10562 | M24: 10588 | N24: 10735 | O24: 10910 | P24: 11167 | Q24: 11349 | R24: 11536 | S24: 11739 | T24: 11901 | U24: 12034 | V24: 12245 | W24: 12415 | X24: 12677 | Y24: 12954
E25: v tom | F25: interní učitelé | J25: 9311 | K25: 9348 | L25: 9462 | M25: 9480 | N25: 9632 | O25: 9860 | P25: 10151 | Q25: 10308 | R25: 10508 | S25: 10742 | T25: 10873 | U25: 10998 | V25: 11168 | W25: 11362 | X25: 11637 | Y25: 11916
F26: externí učitelé | J26: 1138 | K26: 1128 | L26: 1100 | M26: 1108 | N26: 1103 | O26: 1050 | P26: 1016 | Q26: 1041 | R26: 1028 | S26: 997 | T26: 1028 | U26: 1036 | V26: 1077 | W26: 1053 | X26: 1040 | Y26: 1038
D27: z toho ženy
E28: Celkem | J28: 6433 | K28: 6424 | L28: 6472 | M28: 6468 | N28: 6610 | O28: 6679 | P28: 6845 | Q28: 6991 | R28: 7043 | S28: 7174 | T28: 7264 | U28: 7357 | V28: 7482 | W28: 7567 | X28: 7759 | Y28: 7928
E29: v tom | F29: interní učitelé | J29: 5802 | K29: 5806 | L29: 5860 | M29: 5866 | N29: 5994 | O29: 6087 | P29: 6264 | Q29: 6375 | R29: 6441 | S29: 6602 | T29: 6650 | U29: 6751 | V29: 6830 | W29: 6914 | X29: 7144 | Y29: 7326
F30: externí učitelé | J30: 631 | K30: 618 | L30: 612 | M30: 602 | N30: 616 | O30: 592 | P30: 581 | Q30: 616 | R30: 602 | S30: 572 | T30: 614 | U30: 606 | V30: 652 | W30: 653 | X30: 615 | Y30: 602
Y31: Zdroj: databáze MŠMT

Sheet B8.2.4
D4: Tab. B8.2.4: | H4: Jazykové školy s právem státní jazykové zkoušky – školy, žáci, učitelé
D5: ve školním roce 2008/09 až 2018/19
J7: 2003/04 | K7: 2004/05 | L7: 2005/06 | M7: 2006/07 | N7: 2007/08 | O7: 2008/09 | P7: 2009/10 | Q7: 2010/11 | R7: 2011/12 | S7: 2012/13 | T7: 2013/14 | U7: 2014/15 | V7: 2015/16 | W7: 2016/17 | X7: 2017/18 | Y7: 2018/19
D12: Školy
E13: Celkem | J13: 34 | K13: 33 | L13: 35 | M13: 34 | N13: 37 | O13: 40 | P13: 37 | Q13: 37 | R13: 36 | S13: 40 | T13: 41 | U13: 44 | V13: 45 | W13: 43 | X13: 42 | Y13: 44
D14: Žáci1)
E15: Celkem | J15: 25592 | K15: 21149 | L15: 20990 | M15: 17849 | N15: 14594 | O15: 12910 | P15: 10058 | Q15: 9205 | R15: 6793 | S15: 6517 | T15: 5442 | U15: 5284 | V15: 5337 | W15: 5138 | X15: 5267 | Y15: 5566
E16: z toho jednoleté kurzy | J16: 2091 | K16: 1975 | L16: 1416 | M16: 1250 | N16: 893 | O16: 793 | P16: 744 | Q16: 657 | R16: 591 | S16: 496 | T16: 374 | U16: 363 | V16: 320 | W16: 370 | X16: 339 | Y16: 235
D17: Učitelé (fyzické osoby)
E18: Celkem | J18: 688 | K18: 708 | L18: 666 | M18: 626 | N18: 601 | O18: 546 | P18: 518 | Q18: 460 | R18: 396 | S18: 442 | T18: 392 | U18: 399 | V18: 402 | W18: 368 | X18: 432 | Y18: 393
E19: v tom | F19: interní učitelé | J19: 544 | K19: 516 | L19: 478 | M19: 428 | N19: 360 | O19: 279 | P19: 248 | Q19: 191 | R19: 188 | S19: 170 | T19: 153 | U19: 153 | V19: 167 | W19: 140 | X19: 129 | Y19: 134
F20: externí učitelé | J20: 144 | K20: 192 | L20: 188 | M20: 198 | N20: 241 | O20: 267 | P20: 270 | Q20: 269 | R20: 208 | S20: 272 | T20: 239 | U20: 246 | V20: 235 | W20: 228 | X20: 303 | Y20: 259
D21: Komentáře: | Y21: Zdroj: databáze MŠMT
D22: 1) | E22: Každý žák je započten tolikrát, kolika cizím jazykům se učí.

Sheet B8.2.5
D4: Tab. B8.2.5: | H4: Jazykové školy – jednoleté jazykové kurzy
D5: ve školním roce 2008/09 až 2018/19
J8: 2003/04 | K8: 2004/05 | L8: 2005/06 | M8: 2006/07 | N8: 2007/08 | O8: 2008/09 | P8: 2009/10 | Q8: 2010/11 | R8: 2011/12 | S8: 2012/13 | T8: 2013/14 | U8: 2014/15 | V8: 2015/16 | W8: 2016/17 | X8: 2017/18 | Y8: 2018/19
E13: Žáci jazykových škol nezařazených ve školském rejstříku v 1letém kurzu1) | J13: 6237 | K13: 5753 | L13: 4843 | M13: 4931 | N13: 4577 | O13: 4429 | P13: 4221 | Q13: 4743 | R13: 4458 | S13: 4167 | T13: 2973 | U13: 2445 | V13: 2749 | W13: 2028 | X13: 1876 | Y13: 1887
E14: Žáci jazykových škol zařazených ve školském rejstříku v 1letém kurzu1) | J14: 2091 | K14: 1975 | L14: 1416 | M14: 1250 | N14: 893 | O14: 793 | P14: 744 | Q14: 657 | R14: 591 | S14: 496 | T14: 374 | U14: 363 | V14: 320 | W14: 370 | X14: 339 | Y14: 235
D15: Komentáře: | Y15: Zdroj: databáze MŠMT
D16: 1) | E16: Každý žák je započten tolikrát, kolika cizím jazykům se učí.

Sheet B8.3.1
D4: Tab. B8.3.1: | H4: Ubytovací zařízení – domovy mládeže, ubytovaní a pracovníci
D5: ve školním roce 2008/09 až 2018/19
J7: 2003/04 | K7: 2004/05 | L7: 2005/06 | M7: 2006/07 | N7: 2007/08 | O7: 2008/09 | P7: 2009/10 | Q7: 2010/11 | R7: 2011/12 | S7: 2012/13 | T7: 2013/14 | U7: 2014/15 | V7: 2015/16 | W7: 2016/17 | X7: 2017/18 | Y7: 2018/19
D12: Domovy mládeže1)
E13: Celkem | J13: 544 | K13: 528 | L13: 507 | M13: 519 | N13: 479 | O13: 474 | P13: 463 | Q13: 451 | R13: 434 | S13: 415 | T13: 408 | U13: 398 | V13: 391 | W13: 383 | X13: 382 | Y13: 378
D14: Ubytovaní
E15: Žáci celkem | J15: 56860 | K15: 56243 | L15: 53694 | M15: 52128 | N15: 48916 | O15: 46159 | P15: 44204 | Q15: 42042 | R15: 39339 | S15: 37244 | T15: 35780 | U15: 35341 | V15: 34658 | W15: 34613 | X15: 35460 | Y15: 35826
E16: Jiné osoby2) | J16: 2759 | K16: 3039 | L16: 2210 | M16: 1910 | N16: 2580 | O16: 2369 | P16: 1961 | Q16: 1980 | R16: 1824 | S16: 1763 | T16: 1536 | U16: 1429 | V16: 1473 | W16: 1194 | X16: 1009 | Y16: 1089
D17: Vychovatelé (fyzické osoby)
E18: Celkem | J18: 2943 | K18: 2891 | L18: 2833 | M18: 3150 | N18: 2575 | O18: 2503 | P18: 2347 | Q18: 2221 | R18: 2146 | S18: 2016 | T18: 1896 | U18: 1947 | V18: 1833 | W18: 1809 | X18: 1967 | Y18: 1872
D19: Komentáře: | Y19: Zdroj: databáze MŠMT
D20: 1) | E20: Do školního roku 2006/07 jsou ubytovací zařízení započtena podle počtu jednotlivých pracovišť, od školního roku 2007/08 je uveden počet ubytovacích zařízení bez ohledu na počet jejich pracovišť.
D21: 2) | E21: V jiných osobách jsou vykazováni i studenti VŠ.

Sheet B8.3.2
D4: Tab. B8.3.2: | H4: Ubytovací zařízení – internáty a ubytovaní žáci
D5: ve školním roce 2008/09 až 2018/19
P7: 2009/10 | Q7: 2010/11 | R7: 2010/11 | S7: 2012/13 | T7: 2013/14 | U7: 2014/15 | V7: 2015/16 | W7: 2016/17 | X7: 2017/18 | Y7: 2018/19
J8: 2003/04 | K8: 2004/05 | L8: 2005/06 | M8: 2006/07 | N8: 2007/08 | O8: 2008/09 | P8: 2009/10 | Q8: 2010/11 | R8: 2011/12 | S8: 2012/13 | T8: 2013/14 | U8: 2014/15 | V8: 2015/16 | W8: 2016/17 | X8: 2017/18 | Y8: 2018/19
E13: Počet internátů1) | J13: 110 | K13: 100 | L13: 98 | M13: 92 | N13: 88 | O13: 87 | P13: 88 | Q13: 88 | R13: 85 | S13: 84 | T13: 83 | U13: 81 | V13: 79 | W13: 78 | X13: 74 | Y13: 70
E14: Počet ubytovaných žáků | J14: 4624 | K14: 4163 | L14: 3825 | M14: 3541 | N14: 3348 | O14: 3133 | P14: 3094 | Q14: 3011 | R14: 2814 | S14: 2699 | T14: 2554 | U14: 2445 | V14: 2382 | W14: 2276 | X14: 2192 | Y14: 1993
D15: Komentáře: | Y15: Zdroj: databáze MŠMT
D16: 1) | E16: Do školního roku 2006/07 jsou ubytovací zařízení započtena podle počtu jednotlivých pracovišť, od školního roku 2007/08 je uveden počet ubytovacích zařízení bez ohledu na počet jejich pracovišť.

Sheet B8.4.1
D4: Tab. B8.4.1: | H4: Stravovací zařízení – školní jídelny, strávníci a pracovníci
D5: ve školním roce 2008/09 až 2018/19
J7: 2003/04 | K7: 2004/05 | L7: 2005/06 | M7: 2006/07 | N7: 2007/08 | O7: 2008/09 | P7: 2009/10 | Q7: 2010/11 | R7: 2011/12 | S7: 2012/13 | T7: 2013/14 | U7: 2014/15 | V7: 2015/16 | W7: 2016/17 | X7: 2017/18 | Y7: 2018/19
D12: Zařízení školního stravování1)
E13: Celkem | J13: 7627 | K13: 7843 | L13: 7984 | M13: 7958 | N13: 7955 | O13: 7962 | P13: 8036 | Q13: 8087 | R13: 8154 | S13: 8215 | T13: 8293 | U13: 8384 | V13: 8454 | W13: 8485 | X13: 8556 | Y13: 8582
D14: Strávníci 2)
E15: Stravující se žáci | J15: 1322019 | K15: 1298056 | L15: 1279431 | M15: 1262691 | N15: 1262230 | O15: 1262449 | P15: 1262640 | Q15: 1274171 | R15: 1285951 | S15: 1303569 | T15: 1321622 | U15: 1352811 | V15: 1379778 | W15: 1407904 | X15: 1436495 | Y15: 1457579
E16: Stravující se dospělí | J16: 358733 | K16: 352790 | L16: 339402 | M16: 336059 | N16: 341104 | O16: 345365 | P16: 349054 | Q16: 350127 | R16: 343137 | S16: 346190 | T16: 352319 | U16: 350807 | V16: 353908 | W16: 359169 | X16: 371793 | Y16: 385037
E17: Náhradní stravování – stravující se žáci | J17: 18660 | K17: 17752 | L17: 17301 | M17: 10700 | N17: 8419 | O17: 6646 | P17: 6420 | Q17: 5529 | R17: 3900 | S17: 3348 | T17: 3138 | U17: 3040 | V17: 2670 | W17: 2854 | X17: 2855 | Y17: 2803
D18: Pracovníci (fyzické osoby)
E19: Celkem | J19: 33756 | K19: 33354 | L19: 32865 | M19: 32799 | N19: 32686 | O19: 32823 | P19: 32892 | Q19: 32996 | R19: 32775 | S19: 32851 | T19: 33139 | U19: 33562 | V19: 33759 | W19: 34234 | X19: 34759 | Y19: 35166
D20: Komentáře: | Y20: Zdroj: databáze MŠMT
D21: 1] | E21: Bez náhradního stravování.
D22: 2] | E22: Stravující se děti/žáci/studenti/dospělí ve školních jídelnách i výdejnách stravovacích zařízení.

Sheet B8.5.1
D4: Tab. B8.5.1: | H4: Zařízení pro výkon ústavní a ochranné výchovy
D5: ve školním roce 2008/09 až 2018/19
J7: 2003/04 | K7: 2004/05 | L7: 2005/06 | M7: 2006/07 | N7: 2007/08 | O7: 2008/09 | P7: 2009/10 | Q7: 2010/11 | R7: 2011/12 | S7: 2012/13 | T7: 2013/14 | U7: 2014/15 | V7: 2015/16 | W7: 2016/17 | X7: 2017/18 | Y7: 2018/19
D12: Zařízení
E13: Celkem | J13: 198 | K13: 219 | L13: 225 | M13: 229 | N13: 230 | O13: 232 | P13: 229 | Q13: 228 | R13: 227 | S13: 220 | T13: 219 | U13: 214 | V13: 213 | W13: 211 | X13: 209 | Y13: 204
E14: v tom | F14: dětský domov | J14: 134 | K14: 148 | L14: 149 | M14: 153 | N14: 155 | O14: 155 | P14: 151 | Q14: 150 | R14: 149 | S14: 147 | T14: 146 | U14: 144 | V14: 144 | W14: 143 | X14: 142 | Y14: 138
F15: výchovný ústav | J15: 35 | K15: 33 | L15: 34 | M15: 34 | N15: 33 | O15: 34 | P15: 33 | Q15: 33 | R15: 33 | S15: 29 | T15: 29 | U15: 29 | V15: 28 | W15: 27 | X15: 26 | Y15: 25
F16: diagnostický ústav | J16: 12 | K16: 14 | L16: 13 | M16: 14 | N16: 14 | O16: 14 | P16: 14 | Q16: 14 | R16: 14 | S16: 14 | T16: 14 | U16: 13 | V16: 13 | W16: 13 | X16: 13 | Y16: 13
F17: dětský domov se školou | J17: 17 | K17: 24 | L17: 29 | M17: 28 | N17: 28 | O17: 29 | P17: 31 | Q17: 31 | R17: 31 | S17: 30 | T17: 30 | U17: 28 | V17: 28 | W17: 28 | X17: 28 | Y17: 28
D18: Děti
E19: Celkem | J19: 7250 | K19: 7590 | L19: 7621 | M19: 7459 | N19: 7427 | O19: 7820 | P19: 7878 | Q19: 7397 | R19: 7150 | S19: 6941 | T19: 6549 | U19: 6495 | V19: 6482 | W19: 6500 | X19: 6345 | Y19: 6394
E20: v tom | F20: dětský domov | J20: 4657 | K20: 4867 | L20: 4869 | M20: 4815 | N20: 4618 | O20: 4739 | P20: 4704 | Q20: 4628 | R20: 4451 | S20: 4442 | T20: 4253 | U20: 4314 | V20: 4260 | W20: 4270 | X20: 4262 | Y20: 4248
F21: výchovný ústav | J21: 1544 | K21: 1479 | L21: 1420 | M21: 1404 | N21: 1430 | O21: 1546 | P21: 1534 | Q21: 1445 | R21: 1395 | S21: 1269 | T21: 1146 | U21: 1081 | V21: 1089 | W21: 1096 | X21: 1004 | Y21: 993
F22: diagnostický ústav | J22: 494 | K22: 501 | L22: 537 | M22: 516 | N22: 705 | O22: 793 | P22: 853 | Q22: 564 | R22: 543 | S22: 517 | T22: 453 | U22: 421 | V22: 392 | W22: 404 | X22: 383 | Y22: 394
F23: dětský domov se školou | J23: 555 | K23: 743 | L23: 795 | M23: 724 | N23: 674 | O23: 742 | P23: 787 | Q23: 760 | R23: 761 | S23: 713 | T23: 697 | U23: 679 | V23: 741 | W23: 730 | X23: 696 | Y23: 759
D24: Dívky
E25: Celkem | J25: 2909 | K25: 3017 | L25: 3038 | M25: 2980 | N25: 2953 | O25: 3146 | P25: 3210 | Q25: 3063 | R25: 2963 | S25: 2855 | T25: 2673 | U25: 2664 | V25: 2726 | W25: 2751 | X25: 2675 | Y25: 2743
E26: v tom | F26: dětský domov | J26: 2155 | K26: 2234 | L26: 2227 | M26: 2210 | N26: 2123 | O26: 2178 | P26: 2183 | Q26: 2205 | R26: 2097 | S26: 2077 | T26: 1989 | U26: 2002 | V26: 2011 | W26: 2006 | X26: 1987 | Y26: 2030
F27: výchovný ústav | J27: 404 | K27: 393 | L27: 386 | M27: 387 | N27: 384 | O27: 426 | P27: 435 | Q27: 420 | R27: 425 | S27: 391 | T27: 318 | U27: 309 | V27: 340 | W27: 377 | X27: 339 | Y27: 348
F28: diagnostický ústav | J28: 212 | K28: 212 | L28: 229 | M28: 233 | N28: 286 | O28: 356 | P28: 406 | Q28: 261 | R28: 251 | S28: 221 | T28: 202 | U28: 195 | V28: 159 | W28: 187 | X28: 160 | Y28: 161
F29: dětský domov se školou | J29: 138 | K29: 178 | L29: 196 | M29: 150 | N29: 160 | O29: 186 | P29: 186 | Q29: 177 | R29: 190 | S29: 166 | T29: 164 | U29: 158 | V29: 216 | W29: 181 | X29: 189 | Y29: 204
Y30: Zdroj: databáze MŠMT

Sheet B8.5.2
D4: Tab. B8.5.2: | H4: Zařízení pro výkon ústavní a ochranné výchovy
D5: ve školním roce 2008/09 až 2018/19
J7: 2003/04 | K7: 2004/05 | L7: 2005/06 | M7: 2006/07 | N7: 2007/08 | O7: 2008/09 | P7: 2009/10 | Q7: 2010/11 | R7: 2011/12 | S7: 2012/13 | T7: 2013/14 | U7: 2014/15 | V7: 2015/16 | W7: 2016/17 | X7: 2017/18 | Y7: 2018/19
D12: Děti před zahájením povinné školní docházky
E13: Celkem | J13: 392 | K13: 406 | L13: 415 | M13: 411 | N13: 384 | O13: 462 | P13: 507 | Q13: 474 | R13: 468 | S13: 509 | T13: 420 | U13: 445 | V13: 497 | W13: 511 | X13: 486 | Y13: 515
E14: v tom | F14: dětský domov | J14: 386 | K14: 371 | L14: 378 | M14: 371 | N14: 343 | O14: 409 | P14: 426 | Q14: 408 | R14: 396 | S14: 443 | T14: 378 | U14: 417 | V14: 458 | W14: 471 | X14: 450 | Y14: 484
F15: výchovný ústav | J15: 0 | K15: 21 | L15: 21 | M15: 24 | N15: 26 | O15: 34 | P15: 41 | Q15: 36 | R15: 41 | S15: 44 | T15: 33 | U15: 24 | V15: 29 | W15: 32 | X15: 27 | Y15: 25
F16: diagnostický ústav | J16: 6 | K16: 14 | L16: 16 | M16: 16 | N16: 15 | O16: 18 | P16: 35 | Q16: 23 | R16: 24 | S16: 22 | T16: 8 | U16: 4 | V16: 5 | W16: 7 | X16: 9 | Y16: 5
F17: dětský domov se školou | J17: 0 | K17: 0 | L17: 0 | M17: 0 | N17: 0 | O17: 1 | P17: 5 | Q17: 7 | R17: 7 | S17: 0 | T17: 1 | U17: 0 | V17: 5 | W17: 1 | X17: 0 | Y17: 1
D18: Děti plnící povinnou školní docházku
E19: Celkem | J19: 4002 | K19: 4273 | L19: 4152 | M19: 4108 | N19: 4097 | O19: 4131 | P19: 4081 | Q19: 3720 | R19: 3547 | S19: 3467 | T19: 3211 | U19: 3199 | V19: 3325 | W19: 3417 | X19: 3485 | Y19: 3591
E20: v tom | F20: dětský domov | J20: 3132 | K20: 3262 | L20: 3219 | M20: 3182 | N20: 3000 | O20: 2985 | P20: 2920 | Q20: 2789 | R20: 2642 | S20: 2611 | T20: 2444 | U20: 2455 | V20: 2486 | W20: 2531 | X20: 2646 | Y20: 2632
F21: výchovný ústav | J21: 175 | K21: 162 | L21: 79 | M21: 69 | N21: 48 | O21: 56 | P21: 28 | Q21: 29 | R21: 25 | S21: 18 | T21: 11 | U21: 15 | V21: 19 | W21: 34 | X21: 24 | Y21: 39
F22: diagnostický ústav | J22: 246 | K22: 272 | L22: 199 | M22: 239 | N22: 442 | O22: 423 | P22: 429 | Q22: 246 | R22: 248 | S22: 234 | T22: 199 | U22: 185 | V22: 190 | W22: 215 | X22: 203 | Y22: 235
F23: dětský domov se školou | J23: 449 | K23: 577 | L23: 655 | M23: 618 | N23: 607 | O23: 667 | P23: 704 | Q23: 656 | R23: 632 | S23: 604 | T23: 557 | U23: 544 | V23: 630 | W23: 637 | X23: 612 | Y23: 685
D24: Děti po ukončení povinné školní docházky
E25: Celkem | J25: 2856 | K25: 2911 | L25: 3054 | M25: 2940 | N25: 2946 | O25: 3227 | P25: 3290 | Q25: 3203 | R25: 3135 | S25: 2965 | T25: 2918 | U25: 2851 | V25: 2660 | W25: 2572 | X25: 2374 | Y25: 2288
E26: v tom | F26: dětský domov | J26: 1139 | K26: 1234 | L26: 1272 | M26: 1262 | N26: 1275 | O26: 1345 | P26: 1358 | Q26: 1431 | R26: 1413 | S26: 1388 | T26: 1431 | U26: 1442 | V26: 1316 | W26: 1268 | X26: 1166 | Y26: 1132
F27: výchovný ústav | J27: 1369 | K27: 1296 | L27: 1300 | M27: 1311 | N27: 1356 | O27: 1456 | P27: 1465 | Q27: 1380 | R27: 1329 | S27: 1207 | T27: 1102 | U27: 1042 | V27: 1041 | W27: 1030 | X27: 953 | Y27: 929
F28: diagnostický ústav | J28: 242 | K28: 215 | L28: 322 | M28: 261 | N28: 248 | O28: 352 | P28: 389 | Q28: 295 | R28: 271 | S28: 261 | T28: 246 | U28: 232 | V28: 197 | W28: 182 | X28: 171 | Y28: 154
F29: dětský domov se školou | J29: 106 | K29: 166 | L29: 160 | M29: 106 | N29: 67 | O29: 74 | P29: 78 | Q29: 97 | R29: 122 | S29: 109 | T29: 139 | U29: 135 | V29: 106 | W29: 92 | X29: 84 | Y29: 73
Y30: Zdroj: databáze MŠMT

Sheet GB1
D4: Obr. B1: | H4: Školská zařízení celkem, jazykové školy a základní umělecké školy – všichni zřizovatelé
D5: – přepočtené počty zaměstnanců a pedag. pracovníků, průměrné nominální a reálné mzdy v letech 2007 až 2017
J10: zaměstnanci | K10: zř.všichni
K11: 2003 | L11: 2004 | M11: 2005 | N11: 2006 | O11: 2008 | P11: 2009 | Q11: 2010 | R11: 2011 | S11: 2012 | T11: 2013 | U11: 2014 | V11: 2015 | W11: 2016 | X11: 2017 | Y11: 2018
J12: nominální mzdy | K12: 12836.85123 | L12: 13623.27239 | M12: 14367.78379 | N12: 15253.83399 | O12: 16692.72164 | P12: 18002.1704 | Q12: 18049.51952 | R12: 18395.42653 | S12: 18988.329 | T12: 19139.04881 | U12: 19441.57527 | V12: 19947.28056 | W12: 20952.97677 | X12: 22593.04833 | Y12: 25171.38345
J13: reálné mzdy | K13: =K12/K22*100 -> 13441.72904 | L13: 13887.12782 | M13: 14367.78379 | N13: 18378.11324 | O13: 18404.32375 | P13: 19631.59259 | Q13: 19408.08551 | R13: 19404.45836 | S13: 19395.63738 | T13: 19273.96658 | U13: 19500.07549 | V13: 19947.28056 | W13: 20807.32549 | X13: =X12/X22*100 -> 21913.72292 | Y13: =Y12/Y22*100 -> 23904.44772
J14: počty | K14: 58.224906 | L14: 57.761 | M14: 57.005009 | N14: 56.354247 | O14: 56.019026 | P14: 56.16673 | Q14: 56.370235 | R14: 55.965042 | S14: 55.701432 | T14: 56.114 | U14: 57.025966 | V14: 58.17 | W14: 59.054511 | X14: 60.197976 | Y14: 61.0800818
J16: pedagog. prac. | K16: zř.všichni
K17: 2003 | L17: 2004 | M17: 2005 | N17: 2006 | O17: 2008 | P17: 2009 | Q17: 2010 | R17: 2011 | S17: 2012 | T17: 2013 | U17: 2014 | V17: 2015 | W17: 2016 | X17: 2017 | Y17: 2018
J18: nominální mzdy | K18: 18259.93841 | L18: 19516.82617 | M18: 20774.85325 | N18: 21942.07843 | O18: 21709.26449 | P18: 22684.57822 | Q18: 22248.05034 | R18: 23027.73635 | S18: 24522.84593 | T18: 24666.4207 | U18: 24990.49731 | V18: 25507.43243 | W18: 26700.26604 | X18: 28397.95477 | Y18: 31484.5833
J19: reálné mzdy | K19: =K18/K22*100 -> 19120.35436 | L19: 19894.8279 | M19: 20774.85325 | N19: 26436.23907 | O19: 23935.242 | P19: 24737.81704 | Q19: 23922.63477 | R19: 24290.86113 | S19: 25048.87225 | T19: 24840.30282 | U19: 25065.69439 | V19: 25507.43243 | W19: 26514.66339 | X19: =X18/X22*100 -> 27544.08804 | Y19: 29899.88918
J20: počty | K20: 22.784645 | L20: 22.846172 | M20: 23.788703 | N20: 23.742065 | O20: 23.775466 | P20: 24.004983 | Q20: 24.196356 | R20: 24.431727 | S20: 24.491177 | T20: 24.816 | U20: 25.333927 | V20: 26.059 | W20: 26.684634 | X20: 27.411017 | Y20: 27.8659733
J22: index sp.c | K22: 95.5 | L22: 98.1 | M22: 100 | N22: 83 | O22: 90.7 | P22: 91.7 | Q22: 93 | R22: 94.8 | S22: 97.9 | T22: 99.3 | U22: 99.7 | V22: 100 | W22: 100.7 | X22: 103.1 | Y22: 105.3
D38: Komentáře: | Y38: Zdroj: databáze MŠMT, ČSÚ
D39: 1] | E39: Průměrná reálná měsíční mzda ve stálých cenách roku 2015.

Sheet GB2
D4: Obr. B2: | G4: Školní družiny a školní kluby – poměrové ukazatele ve školním roce 2008/09 až 2018/19
J10: 2003/04 | K10: 2004/05 | L10: 2005/06 | M10: 2006/07 | N10: 2007/08 | O10: 2008/09 | P10: 2009/10 | Q10: 2010/11 | R10: 2011/12 | S10: 2012/13 | T10: 2013/14 | U10: 2014/15 | V10: 2015/16 | W10: 2016/17 | X10: 2017/18 | Y10: 2018/19
I11: průměrný počet žáků na školní družinu | J11: 52.29227405 | K11: 52.69177403 | L11: 53.06445264 | M11: 53.92002917 | N11: 55.62911485 | O11: 59.18899823 | P11: 60.33148893 | Q11: 62.09927117 | R11: 65.11340726 | S11: 67.92526422 | T11: 71.38332077 | U11: 75.42207792 | V11: 79.039801 | W11: 81.60543881 | X11: 82.84815725 | Y11: 82.81314118
I12: průměrný počet žáků na školní klub | J12: 99.16024341 | K12: 78.10810811 | L12: 75.68987342 | M12: 80.37204301 | N12: 79.92436975 | O12: 79.25258799 | P12: 81.79563492 | Q12: 84.54633205 | R12: 82.10133843 | S12: 85.45627376 | T12: 82.49444444 | U12: 81.29166667 | V12: 82.13286713 | W12: 79.77834179 | X12: 79.85762144 | Y12: 79.39137645
Y29: Zdroj: databáze MŠMT

Sheet GB3
D4: Obr. B3: | G4: Školní družiny a školní kluby – počty zapsaných žáků a jejich podíly na příslušné
D5: skupině žáků ve školním roce 2008/09 až 2018/19
J10: 2005/06 | K10: 2006/07 | L10: 2007/08 | M10: 2008/09 | N10: 2009/10 | O10: 2010/11 | P10: 2011/12 | Q10: 2012/13 | R10: 2013/14 | S10: 2014/15 | T10: 2015/16 | U10: 2016/17 | V10: 2017/18 | W10: 2018/19
I11: Počet zapsaných žáků ve školních družinách | J11: 215707 | K11: 221827 | L11: 228135 | M11: 234566 | N11: 239878 | O11: 247093 | P11: 258370 | Q11: 269935 | R11: 284177 | S11: 301990 | T11: 317740 | U11: 330094 | V11: 337192 | W11: 339037
I12: Počet zapsaných žáků ve školních klubech | J12: 35877 | K12: 37373 | L12: 38044 | M12: 38279 | N12: 41225 | O12: 43795 | P12: 42939 | Q12: 44950 | R12: 44547 | S12: 44873 | T12: 46980 | U12: 47149 | V12: 47675 | W12: 47873
I13: podíl na počtu žáků 1. stupně ZŠ | J13: 0.4310545005 | K13: 0.479 | L13: 0.498 | M13: 0.5119315231 | N13: 0.5206205481 | O13: 0.530948902 | P13: 0.5447086082 | Q13: 0.5530253674 | R13: 0.5616334936 | S13: 0.5702185029 | T13: 0.5762130323 | U13: 0.5801647199 | V13: 0.5857088513 | W13: 0.5912315456
I14: podíl na počtu žáků 2. stupně ZŠ, nižších ročníků víceletých středních škol a konzervatoří | J14: 0.07259846535 | K14: 0.082 | L14: 0.089 | M14: 0.09559497439 | N14: 0.1097524613 | O14: 0.1198129829 | P14: 0.1187902697 | Q14: 0.1246364193 | R14: 0.1229422009 | S14: 0.1228686978 | T14: 0.1271014485 | U14: 0.1245578301 | V14: 0.1216143136 | W14: 0.1169242568
W36: Zdroj: databáze MŠMT

Sheet GB4
D4: Obr. B4: | G4: Střediska pro volný čas dětí a mládeže – poměrové ukazatele ve školním roce 2008/09 až 2018/19
J10: 2003/04 | K10: 2004/05 | L10: 2005/06 | M10: 2006/07 | N10: 2007/08 | O10: 2008/09 | P10: 2009/10 | Q10: 2010/11 | R10: 2011/12 | S10: 2012/13 | T10: 2013/14 | U10: 2014/15 | V10: 2015/16 | W10: 2016/17 | X10: 2017/18 | Y10: 2018/19
I11: průměrný počet účastníků na středisko | J11: 762.1065292 | K11: 764.7269625 | L11: 728.2073579 | M11: 732.0265781 | N11: 777.8851351 | O11: 793.1554054 | P11: 814.3783784 | Q11: 841.3023256 | R11: 843.6721854 | S11: 865.7387097 | T11: 867.625 | U11: 874.1794872 | V11: 909.2382445 | W11: 922.8909657 | X11: 936.0771605 | Y11: 922.8454545
I12: průměrný počet účastníků (děti a žáci) na středisko | J12: 609.7388316 | K12: 602.3583618 | L12: 608.4180602 | M12: 570.8471761 | N12: 637.4966216 | O12: 656.3344595 | P12: 676.347973 | Q12: 706.4916944 | R12: 722.4834437 | S12: 745.2290323 | T12: 758.3974359 | U12: 766.1057692 | V12: 802.799373 | W12: 820.0809969 | X12: 835.9259259 | Y12: 829.2878788
I13: průměrný počet účastníků (studenti a ostatní) na středisko | J13: 152.3676976 | K13: 162.3686007 | L13: 119.7892977 | M13: 161.179402 | N13: 140.3885135 | O13: 136.8209459 | P13: 138.0304054 | Q13: 134.8106312 | R13: 121.1887417 | S13: 120.5096774 | T13: 109.2275641 | U13: 108.0737179 | V13: 106.4388715 | W13: 102.8099688 | X13: 100.1512346 | Y13: 93.55757576
Y32: Zdroj: databáze MŠMT

Sheet GB5
D4: Obr. B5: | H4: Základní umělecké školy – poměrové ukazatele ve školním roce 2008/09 až 2018/19
K10: 2003/04 | L10: 2004/05 | M10: 2005/06 | N10: 2006/07 | O10: 2007/08 | P10: 2008/09 | Q10: 2009/10 | R10: 2010/11 | S10: 2011/12 | T10: 2012/13 | U10: 2013/14 | V10: 2014/15 | W10: 2015/16 | X10: 2016/17 | Y10: 2017/18 | Z10: 2018/19
J11: průměrný počet žáků na školu (pobočku) | K11: 237.0042872 | L11: 221.8564206 | M11: 196.7388535 | N11: 212.0368217 | O11: 182.9909539 | P11: 190.233165 | Q11: 195.5449915 | R11: 179.6056662 | S11: 179.5075643 | T11: 181.7313208 | U11: 174.5772825 | V11: 174.28602 | W11: 170.4230504 | X11: 171.0419821 | Y11: 174.3358779 | Z11: 178.5528169
J12: průměrný počet žáků hudeb. oborů na školu (pobočku) | K12: 153.7524116 | L12: 144.9575329 | M12: 128.2429481 | N12: 136.7926357 | O12: 118.2935855 | P12: 122.7390572 | Q12: 126.3039049 | R12: 116.0183767 | S12: 116.3638427 | T12: 117.8543396 | U12: 113.4694464 | V12: 113.746077 | W12: 111.3933747 | X12: 111.7116311 | Y12: 113.5975017 | Z12: 116.0838028
J13: průměrný počet žáků ostatních oborů na školu (pobočku) | K13: 83.25187567 | L13: 76.89888777 | M13: 68.49590537 | N13: 75.24418605 | O13: 64.69736842 | P13: 67.49410774 | Q13: 69.24108659 | R13: 63.58728943 | S13: 63.14372163 | T13: 63.87698113 | U13: 61.10783609 | V13: 60.53994294 | W13: 59.02967564 | X13: 59.330351 | Y13: 60.73837613 | Z13: 62.46901408
Z30: Zdroj: databáze MŠMT
